Cogmind - Beta 13 @@@ ROGUE MODE // 2024.04.18 @ 16:56:52 Player: SPACEGOAT Result: Destroyed by D-53 Grenadier with Mini Grenade Launcher Performance ------------- Evolutions (0) 0 Regions Visited (4) 800 Robots Destroyed (25) 125 Value Destroyed (383) 383 Prototype IDs (23) 460 Alien Tech Used (0) 0 Bonus (339) 339 TOTAL SCORE: 2107 Bonus ------- Follower Combat Kills 39 Aligned with FarCom 300 Cogmind --------- Core Integrity 0/250 Matter 300/300 Energy 100/100 System Corruption 0% Temperature Cool (0) Movement Treading (160) Location -9/Mines Parts ------- > --- POWER (1) -------- (None) > --- PROPULSION (2) --- Light Treads > --- UTILITY (2) ------ Large Storage Unit > --- WEAPON (2) ------- (None) > --- INVENTORY (15) --- Small Battery (100) Medium Matter Pod (100) Structural Scanner Improved Terrain Scanner Terrain Scan Processor Terrain Scan Processor Seismic Detector Utility Shielding Tractor Beam Medium Laser Mining Laser Peak State ------------ > --- POWER ------------ Ion Engine > --- PROPULSION ------- Light Treads Light Treads > --- UTILITY ---------- Large Storage Unit Improved Terrain Scanner > --- WEAPON ----------- Beam Cannon Field Lobotomy Kit > --- INVENTORY -------- Light Treads Small Battery Medium Matter Pod Structural Scanner Improved Terrain Scanner Terrain Scan Processor Terrain Scan Processor Seismic Detector Utility Shielding Tractor Beam Medium Laser Rocket Launcher Mining Laser [Rating: 19] Favorites ----------- Power Ion Engine Engine Ion Engine Propulsion Light Treads Treads Light Treads Utility Improved Terrain Scanner Device Improved Terrain Scanner Storage Large Storage Unit Weapon Beam Cannon Energy Gun Medium Laser Energy Cannon Beam Cannon Ballistic Gun Heavy Assault Rifle Launcher Rocket Launcher Special Weapon Field Lobotomy Kit Build | -11 -10 -10 -10 -9 ------- Run | Yrd Mat Min Exi Min Slots Evolved . | . . . . . Power . | . . . . . Propulsion . | . . . . . Utility . | . . . . . Weapon . | . . . . . Parts Attached 19 | 7 1 4 1 6 Power 3 | 1 . . 1 1 Engine 3 | 1 . . 1 1 Core . | . . . . . Reactor . | . . . . . Propulsion 4 | 2 . . . 2 Treads 4 | 2 . . . 2 Leg . | . . . . . Wheel . | . . . . . Hover . | . . . . . Flight . | . . . . . Utility 3 | 2 1 . . . Device 1 | 1 . . . . Storage 2 | 1 1 . . . Processor . | . . . . . Hackware . | . . . . . Protection . | . . . . . Artifact . | . . . . . Weapon 9 | 2 . 4 . 3 Energy Gun 2 | 1 . . . 1 Energy Cannon 2 | . . 2 . . Ballistic Gun 3 | 1 . 2 . . Ballistic Cannon . | . . . . . Launcher 1 | . . . . 1 Special Weapon 1 | . . . . 1 Impact Weapon . | . . . . . Slashing Weapon . | . . . . . Piercing Weapon . | . . . . . Special Melee Weapon . | . . . . . Unidentified Prototypes . | . . . . . Parts Lost 8 | . . . . 8 Power 1 | . . . . 1 Propulsion 3 | . . . . 3 Utility 1 | . . . . 1 Weapon 3 | . . . . 3 Highest Loss Streak 5 | . . . . 5 To Critical Strikes . | . . . . . Average Slot Usage (%) 99 | . 100 100 100 98 Engine 13 | . 14 14 14 13 Treads 27 | . 28 28 28 27 Device 13 | . 14 14 14 13 Storage 14 | . 14 14 14 14 Energy Gun 3 | . 14 1 . 1 Energy Cannon 10 | . . 12 14 14 Ballistic Gun 13 | . 14 14 14 11 Naked Turns . | . . . . . Heaviest Build 37 | 15 30 32 32 37 Greatest Support 40 | 40 40 40 40 40 Greatest Overweight (x) . | . . . . . Average Overweight (x) . | . . . . . Largest Inventory Capacity 15 | 8 15 15 15 15 Average Capacity 13 | 7 10 15 15 15 Most Carried 15 | 7 12 15 15 15 Average Carried 12 | 3 8 14 14 14 Final Capacity 15 | 8 15 15 15 15 Final Carried 15 | 6 12 14 15 11 Class Distribution -------------------- 80% | Mutant 19% | Skirmisher Dominant Class ---------------- Mutant | -10/Materials Mutant | -10/Mines Mutant | -10/Exiles Skirmisher | -9/Mines Resources | -11 -10 -10 -10 -9 ----------- Run | Yrd Mat Min Exi Min Matter Collected 568 | 282 129 108 . 49 Remotely . | . . . . . Salvage Created 891 | 94 381 396 . 20 Parts 56 | 11 27 18 . . Haulers Intercepted . | . . . . . Recyclers Shooed 1 | . . 1 . . Parts Field Recycled . | . . . . . Retrieved Matter . | . . . . . Parts Self-Destructed . | . . . . . Prevented . | . . . . . Kills | -11 -10 -10 -10 -9 ------- Run | Yrd Mat Min Exi Min Combat Hostiles Destroyed 12 | . 6 5 . 1 Guns 7 | . 6 1 . . Cannons 4 | . . 3 . 1 Classes Destroyed 7 | 2 4 . . 1 Worker 4 | . 3 1 . . Builder 2 | . 1 1 . . Tunneler 4 | 2 2 . . . Recycler 4 | 1 1 2 . . Swarmer 4 | . 3 1 . . Grunt 7 | . 3 4 . . Assembled 1 | . . . . 1 Best Kill Streak 6 | 3 6 6 . 1 Combat Bots Only 4 | . 4 2 . 1 Max Kills in Single Turn 2 | 1 2 1 . 1 Gunslinging . | . . . . . Exploded . | . . . . . Melee . | . . . . . Uniques/NPCs Destroyed . | . . . . . Combat | -11 -10 -10 -10 -9 -------- Run | Yrd Mat Min Exi Min Hostile Shots Fired 89 | . 28 39 . 22 Missed 22 | . 5 13 . 4 Damage Taken 1198 | . 257 329 . 612 Core 264 | . 33 56 . 175 Absorbed by Shields . | . . . . . Core Remaining (%) 100 | 100 . . . . Volleys Fired 65 | 4 24 25 . 12 Largest 2 | 2 2 2 . 2 Hottest 110 | 70 70 83 . 110 Shots Fired 122 | 8 48 49 . 17 Gun 89 | 8 48 26 . 7 Cannon 28 | . . 23 . 5 Launcher . | . . . . . Special 5 | . . . . 5 Kinetic 54 | 4 24 26 . . Thermal 63 | 4 24 23 . 12 Explosive . | . . . . . Electromagnetic . | . . . . . Robot Hit Streak 15 | 3 15 13 . 10 Robot Miss Streak 3 | 2 3 3 . 3 Penetration Max . | . . . . . Secondary Targets . | . . . . . Shots Hit Robots 83 | 5 36 30 . 12 Core Hits 34 | 3 18 11 . 2 Critical Kills 1 | . . 1 . . Critical Parts Destroyed . | . . . . . Critical Strikes 5 | . 3 1 . 1 Burn 4 | . 3 . . 1 Meltdown 1 | . . 1 . . Melee Attacks . | . . . . . Impact . | . . . . . Slashing . | . . . . . Piercing . | . . . . . Sneak Attacks . | . . . . . Combat Hostiles . | . . . . . Follow-up Attacks . | . . . . . Damage Inflicted 1142 | 79 466 493 . 104 Guns 750 | 79 466 154 . 51 Cannons 392 | . . 339 . 53 Explosions . | . . . . . Melee . | . . . . . Ramming . | . . . . . Kinetic 413 | 41 218 154 . . Thermal 729 | 38 248 339 . 104 Explosive . | . . . . . Electromagnetic . | . . . . . Impact . | . . . . . Slashing . | . . . . . Piercing . | . . . . . Highest Corruption . | . . . . . Average Corruption . | . . . . . Corruption Purged . | . . . . . Corruption Blocked . | . . . . . Overload Shots . | . . . . . Overflow Damage . | . . . . . Projectiles . | . . . . . Explosions . | . . . . . Melee . | . . . . . Knockbacks . | . . . . . Impact . | . . . . . Kinetic . | . . . . . Secondary . | . . . . . Self-Inflicted Damage . | . . . . . Shots . | . . . . . Rammed . | . . . . . Targets Rammed . | . . . . . Kicked . | . . . . . Crushed . | . . . . . Highest Temperature 303 | 36 216 303 . 235 Average Temperature 91 | 19 79 105 . 112 Received Heat Transfer 246 | . 108 138 . . Effects 3 | . . 2 . 1 Energy Bleed 1 | . . . . 1 Interference 2 | . . 2 . . Siege Activations . | . . . . . Robots Corrupted . | . . . . . Combat Hostiles . | . . . . . Parts Fried . | . . . . . Impact Corruptions . | . . . . . Robots Melted 1 | . . 1 . . Combat Hostiles 1 | . . 1 . . Parts Melted 5 | . 2 3 . . Heat Transferred 2109 | 111 962 703 . 333 Parts Sabotaged . | . . . . . Parts Stolen . | . . . . . Parts Stripped . | . . . . . Power Chain Reactions . | . . . . . Alert | -11 -10 -10 -10 -9 ------- Run | Yrd Mat Min Exi Min Peak Influence 248 | 15 239 248 . 21 Initial 93 | . 9 93 . . Average 64 | 8 93 100 . . Maximum Alert Level 1 | . 1 1 . . Low Security (%) 91 | 100 78 92 . 100 Level 1 8 | . 21 7 . . Level 2 . | . . . . . Level 3 . | . . . . . Level 4 . | . . . . . Level 5 . | . . . . . High Security . | . . . . . Max Security . | . . . . . Squads Dispatched 1 | . 1 . . . Investigation . | . . . . . Extermination . | . . . . . Reinforcement 1 | . 1 . . . Assault . | . . . . . Garrison . | . . . . . Intercept . | . . . . . Searches Triggered . | . . . . . Construction Impeded . | . . . . . Haulers Reinforced . | . . . . . Active Scanning Responses . | . . . . . Cargo Convoy Interrupts . | . . . . . Stealth | -11 -10 -10 -10 -9 --------- Run | Yrd Mat Min Exi Min Distress Signals . | . . . . . Communications Jammed . | . . . . . Distress Signals . | . . . . . Times Spotted 33 | . 8 8 . 17 Peak Tracking Total 13 | . 4 4 . 13 Tactical Retreats 3 | . 1 1 . 1 Traps | -11 -10 -10 -10 -9 ------- Run | Yrd Mat Min Exi Min Traps Triggered . | . . . . . Indirectly . | . . . . . Trap Hack Attempts . | . . . . . Triggered . | . . . . . Disarmed . | . . . . . Reprogrammed . | . . . . . Reused . | . . . . . Traps Extracted . | . . . . . Installed . | . . . . . Triggered . | . . . . . Machines | -11 -10 -10 -10 -9 ---------- Run | Yrd Mat Min Exi Min Machines Disabled . | . . . . . Max in Single Turn . | . . . . . Machines Repaired . | . . . . . Machines Dismantled . | . . . . . Machines Sabotaged . | . . . . . Overloaded Fab Kills . | . . . . . Hacking | -11 -10 -10 -10 -9 --------- Run | Yrd Mat Min Exi Min Machines Accessed 1 | . . . 1 . Terminals . | . . . . . Fabricators . | . . . . . Repair Stations . | . . . . . Recycling Units . | . . . . . Scanalyzers . | . . . . . Garrison Access . | . . . . . Total Hacks 1 | . . . 1 . Successful 1 | . . . 1 . Failed . | . . . . . Catastrophic . | . . . . . Database Lockouts . | . . . . . Manual 1 | . . . 1 . Terminals . | . . . . . Fabricators . | . . . . . Repair Stations . | . . . . . Recycling Units . | . . . . . Scanalyzers . | . . . . . Garrison Access . | . . . . . Terminal Hacks 1 | . . . 1 . Derelict Proto ID Bank 1 | . . . 1 . Fabricator Hacks . | . . . . . Repair Station Hacks . | . . . . . Recycling Unit Hacks . | . . . . . Scanalyzer . | . . . . . Garrison Access Hacks . | . . . . . Unauthorized Hacks . | . . . . . Terminals . | . . . . . Fabricators . | . . . . . Repair Stations . | . . . . . Recycling Units . | . . . . . Scanalyzers . | . . . . . Garrison Access . | . . . . . Data Cores Recovered . | . . . . . Used . | . . . . . Hacking Detections . | . . . . . Full Trace Events . | . . . . . Feedback Events . | . . . . . Feedback Blocked . | . . . . . Robot Schematics Acquired . | . . . . . Robots Built . | . . . . . Authchips . | . . . . . Time . | . . . . . Total Robot Build Rating . | . . . . . Part Schematics Acquired . | . . . . . Parts Built . | . . . . . Authchips . | . . . . . Time . | . . . . . Total Part Build Rating . | . . . . . Parts Repaired . | . . . . . Time . | . . . . . Parts Recycled . | . . . . . Recycled Matter . | . . . . . Retrieved Matter . | . . . . . Retrieved Components . | . . . . . Parts Scanalyzed . | . . . . . Part Schematics Acquired . | . . . . . Parts Damaged . | . . . . . Bothacking | -11 -10 -10 -10 -9 ------------ Run | Yrd Mat Min Exi Min Used RIF Installer . | . . . . . Robots Hacked . | . . . . . Non-combat . | . . . . . Combat . | . . . . . Robot Hacks Applied . | . . . . . Relay Couplers Released . | . . . . . Fabnet Peak Effective % . | . . . . . Robots Rewired . | . . . . . Allies Hacked . | . . . . . Hacks Repelled . | . . . . . Allies | -11 -10 -10 -10 -9 -------- Run | Yrd Mat Min Exi Min Total Allies 5 | . . . . 5 Largest Group 2 | . . . . 2 Highest-Rated Group 19 | . . . . 19 Highest-Rated Ally 10 | . . . . 10 Total Orders . | . . . . . Ally Attacks 16 | . . . . 16 Total Damage 131 | . . . . 131 Kills 2 | . . . . 2 Allies Corrupted . | . . . . . Allies Melted 1 | . . . . 1 Field Lobotomies 5 | . . . . 5 Intel | -11 -10 -10 -10 -9 ------- Run | Yrd Mat Min Exi Min Robot Analysis Total . | . . . . . Derelict Logs Recovered 1 | . . . . 1 Drone Launches . | . . . . . Drone Recoveries . | . . . . . Exploration | -11 -10 -10 -10 -9 ------------- Run | Yrd Mat Min Exi Min Turns Passed 1866 | 137 386 601 361 381 Spaces Moved 921 | 52 178 271 224 196 Core 5 | 5 . . . . Treads 916 | 47 178 271 224 196 Legs . | . . . . . Wheels . | . . . . . Hover . | . . . . . Flight . | . . . . . Fastest Speed 50 | 50 160 160 160 160 Average Speed 159 | 149 160 160 160 160 Slowest Speed 160 | 160 160 160 160 160 Overloaded Moves . | . . . . . Propulsion Burnouts . | . . . . . Robots Hopped . | . . . . . Cave-ins Triggered . | . . . . . Exploration Rate (%) 36 | 4 30 43 59 48 Regions Visited 4 Branch Regions 3 Pre-discovered Areas . | . . . . . Known Exits Taken . | . . . . . Unknown Exits Taken 4 | 1 1 1 1 . Scrap Searched 1 | . . . . 1 Spaces Dug . | . . . . . Terrain Destroyed . | . . . . . Melee . | . . . . . Projectile . | . . . . . AOE . | . . . . . Terrain Rammed . | . . . . . Walls Destroyed . | . . . . . Machines Disabled . | . . . . . Actions | -11 -10 -10 -10 -9 --------- Run | Yrd Mat Min Exi Min Total 1190 | 100 232 390 227 241 Wait 158 | 31 21 81 . 25 Move 917 | 51 177 270 223 196 Hop . | . . . . . Pick Up 22 | 7 7 5 2 1 Fast Attach 8 | 6 . 1 . 1 Attach 5 | 1 . . . 4 Detach 1 | . . 1 . . Swap 6 | . 1 3 1 1 Drop 8 | . 2 4 1 1 Fire 65 | 4 24 25 . 12 Melee . | . . . . . Ram . | . . . . . Kick . | . . . . . Crush . | . . . . . Escape Stasis . | . . . . . Rewire . | . . . . . Trap . | . . . . . Miscellaneous . | . . . . . Route ------- -11/Scrapyard -10/Materials (discovered 2 exits: [*Mat] / [*Min]) -10/Mines -10/Exiles -9/Mines History --------- Turn | Location | Event 44 | -11/Scrapyard | Discovered new exit (range 15) 138 | -11/Scrapyard | Entered Materials 286 | -10/Materials | Discovered new exit (range 14) 318 | -10/Materials | Build established: Mutant 490 | -10/Materials | Discovered new exit (range 16) 524 | -10/Materials | Entered Mines 536 | -10/Mines | Met a Derelict bent on vengeance 561 | -10/Mines | Joined a pair of Derelicts in attacking an 0b10 outpost 670 | -10/Mines | Found a hidden stash of uninstalled traps 1117 | -10/Mines | Deemed a non-threat by the Exiles lab entrance 1118 | -10/Mines | Discovered new exit (range 5) 1125 | -10/Mines | Entered Exiles 1165 | -10/Exiles | Met 8R-AWN 1193 | -10/Exiles | Met EX-HEX 1241 | -10/Exiles | Met EX-BIN 1258 | -10/Exiles | Aligned with FarCom system 1260 | -10/Exiles | Given EX-Vault access code 1298 | -10/Exiles | Opened EX-Vault 1311 | -10/Exiles | Found Field Lobotomy Kit 1342 | -10/Exiles | Warned to stay clear of 0b10 Research branches 1364 | -10/Exiles | Exiles lab attacked by MAIN.C 1469 | -10/Exiles | Discovered new exit (range 14) 1486 | -10/Exiles | Left Exiles lab with Field Lobotomy Kit 1486 | -10/Exiles | Entered Mines 1630 | -9/Mines | Learned Materials machine intel 1653 | -9/Mines | Received a Rocket Launcher from a helpful Derelict 1772 | -9/Mines | Assembled infested the area 1777 | -9/Mines | Assisted by a Guerilla fighting off Assembled 1789 | -9/Mines | Assimilated as-48179 with FLK Orb 1800 | -9/Mines | Assimilated as-93451 with FLK Orb 1804 | -9/Mines | Assimilated as-94352 with FLK Orb 1809 | -9/Mines | Build established: Skirmisher 1812 | -9/Mines | Assimilated as-83457 with FLK Orb 1815 | -9/Mines | Assimilated as-16802 with FLK Orb 1839 | -9/Mines | Lost 4 allies 1858 | -9/Mines | Core integrity fell below 50% 1866 | -9/Mines | Core integrity fell below 20% 1867 | -9/Mines | Destroyed by D-53 Grenadier with Mini Grenade Launcher Last Messages --------------- Lgt. Treads destroyed. as-38974 destroyed. as-92765 suffers critical hit (Burn). Destroyed Asb. Hover Unit. Ion Engine severed. as-92765 destroyed. Overheating: Energy bleed (-14). Acquired 20 matter. U-05 Engineer lays Concrete. Acquired Ion Engine. Acquired 13 matter. Imp. Terrain Scanner destroyed. The unstable cave ceiling collapses. Ion Engine destroyed. The unstable cave ceiling collapses. D-53 Grenadier destroyed. Lgt. Treads destroyed. Beam Cannon destroyed. Rocket Launcher destroyed. The unstable cave ceiling collapses. Map ----- +----------------------------------------------------+ | | | | | | | | | | | | | | | | | | | | | | | | | ??????????????????????????????????????????? | | ??????????????????????????????????????????? | | ??????????????????????????????????????????? | | ??????????????????????????????????????????? | | ??????????????#????????????????????????#??? | | ??????????????#;#?????????????????????????? | | ?????????????### ????????????????????????? | | ????????????## ??????????????????????#? | | ????????????# #####?????????????????# | | ????????????# < #######????????#?# | | ????????????# ###?????#??? | | ?????????????# ###??#???? | | ??????????????# ##?????? | | ??????????????????# @ #?#???? | | ??????????????????#### #?#???# | | ??????????????????##?## #?????? | | ???????????????????###% #?#???? | | ??????????????????#??#% # ##???? | | ?????????????????????#%## ##????? | | ?????????????????#???# ?# d ##?????? | | ?????????????????????# ?# #a##??????? | | ???????###?????###??## #???????? | | ??????# #???### ### # #???????? | | ????## ??? % # #####???? | | ???## ??? # #?#? | | ???# #??????# = ###### #??? | | ???# #??????# " [ % ###?#??? ???? | | ???# #??#???# " [ ####?#?????????? | | ??## ##???#?# ####???????? ???? | | ### ### #?## # ##?##???????? ??#? | | ?##?## ??# #?????????#??????? | | #??????#???# ####?#?#?? ??? ??? | | ??# #???#???#? ?# ####???????????? | | ???# #??????#???? ?#### #??#???????????? | | ???# ##????????"???????# ##?????????????? | | ???# ##???#??????? ???## ##??#?????????? | | ???# #?????????? ? #?# ##???????????? | | ???# #?????????? ???# ####### #???? | +----------------------------------------------------+ Best States ------------- Heat Dissipation 25 Energy Generation 10 Energy Capacity 250 Matter Stores 300 Matter Capacity 300 Sight Range 16 Terrain Scan Range 16 Terrain Scan Density 10 Evasion (%) 40 Recoil Reduction 2 Item Schematics ----------------- None Robot Schematics ------------------ None Fabricated ------------ Nothing Alien Tech Used ----------------- None Achievements -------------- None Challenges ------------ None Game ------ Seed QuantumLaserClaw Manual? 0 Play Time 00:22:08 Cumulative 22.7 hours Start 2024.04.18 @ 16:35:43 End 2024.04.18 @ 16:56:52 Sessions 1 Manual Loads 0 Difficulty Rogue Special Mode None Game No. 18 Rogue 18 Adventurer 0 Explorer 0 Win Type - Total 0 Types 0/0/0/0/0/0/0/0/0 Lore% 18 Gallery% 26 Achievement% 17 Wizard Run 0 Options --------- Layout 1 ASCII 0 Keyboard 0 Movement Mouse Keybinds 0 Fullscreen 1 Font 24/Smallcaps Map View 50x35 Zoom Use 0% Tactical HUD 0 Map Filters NONE Filters NONE Steam 1 RUN: 6db5e38b-f00c-42da-b409-7614eb659fc7